Cogmind - Beta 17 @@@ ROGUE MODE // 2026.07.23 @ 08:03:51 // Winter2019/RPGLIKE Player: Gallgagger Result: Destroyed by P1-3CE with P1-3CE's Gatling Flakker Performance ------------- Evolutions (1) 500 Regions Visited (6) 1200 Robots Destroyed (129) 645 Value Destroyed (4114) 4114 Prototype IDs (23) 460 Alien Tech Used (0) 0 Bonus (1445) 1445 TOTAL SCORE: 8364 Bonus ------- High Alert Combat Kills 1145 Aligned with FarCom 300 Cogmind --------- Core Integrity 0/900 Matter 213/300 Energy 95/160 System Corruption 0% Temperature Hot (251) Movement Flying (109) Ox1 Location -8/Mines Parts ------- > --- POWER (1) -------- Light Nuclear Core > --- PROPULSION (4) --- Cesium-ion Thruster Cesium-ion Thruster Cesium-ion Thruster > --- UTILITY (7) ------ Improved Terrain Scanner Seismic Detector Salvage Targeting Computer Improved Light Armor Plating Chronowheel > --- WEAPON (2) ------- Firepult > --- INVENTORY (3) ---- Cloak of Protection Peak State ------------ > --- POWER ------------ Light Nuclear Core > --- PROPULSION ------- Cesium-ion Thruster Cesium-ion Thruster Cesium-ion Thruster Cesium-ion Thruster > --- UTILITY ---------- Improved Terrain Scanner Seismic Detector Salvage Targeting Computer Propulsion Shielding Improved Light Armor Plating Trap Extractor Chronowheel > --- WEAPON ----------- Firepult > --- INVENTORY -------- Cloak of Protection [Rating: 60] Favorites ----------- Power Light Ion Engine Engine Light Ion Engine Power Core Light Nuclear Core Propulsion Cesium-ion Thruster Wheel Wheel Flight Unit Cesium-ion Thruster Utility Improved Terrain Scanner Device Improved Terrain Scanner Processor Salvage Targeting Computer Protection Light Armor Plating Weapon Particle Cannon Energy Gun Pulse Rifle Energy Cannon Particle Cannon Ballistic Gun Autogun Build | -11 -10 -10 -9 -9 -9 -8 ------- Run | Yrd Mat Min Mat Min Exi Min Slots Evolved 10 | 3 1 . 6 . . . Power . | . . . . . . . Propulsion 3 | 1 . . 2 . . . Utility 6 | 1 1 . 4 . . . Weapon 1 | 1 . . . . . . Parts Attached 30 | 7 4 . 15 1 1 2 Power 2 | 1 . . 1 . . . Engine 1 | 1 . . . . . . Core 1 | . . . 1 . . . Reactor . | . . . . . . . Propulsion 9 | 2 2 . 5 . . . Treads . | . . . . . . . Leg . | . . . . . . . Wheel 2 | 2 . . . . . . Hover . | . . . . . . . Flight 7 | . 2 . 5 . . . Utility 12 | 2 . . 7 1 1 1 Device 6 | 2 . . 2 . 1 1 Storage . | . . . . . . . Processor 1 | . . . 1 . . . Hackware . | . . . . . . . Protection 5 | . . . 4 1 . . Artifact . | . . . . . . . Weapon 7 | 2 2 . 2 . . 1 Energy Gun 3 | 2 . . 1 . . . Energy Cannon 3 | . 2 . . . . 1 Ballistic Gun 1 | . . . 1 . . . Ballistic Cannon . | . . . . . . . Launcher . | . . . . . . . Special Weapon . | . . . . . . . Impact Weapon . | . . . . . . . Slashing Weapon . | . . . . . . . Piercing Weapon . | . . . . . . . Special Melee Weapon . | . . . . . . . Unidentified Prototypes . | . . . . . . . Parts Lost 3 | . . . 1 . . 2 Power . | . . . . . . . Propulsion 1 | . . . . . . 1 Utility 2 | . . . 1 . . 1 Weapon . | . . . . . . . Highest Loss Streak 2 | . . . 1 . . 2 To Critical Strikes . | . . . . . . . Average Backups . | . . . . 3 2 1 Power . | . . . . . . . Propulsion . | . . . . . . . Utility . | . . . . 1 . . Weapon . | . . . . 1 1 . Tool/Special . | . . . . . . . Unused Backups 6 | . . . 2 1 3 . Power . | . . . . . . . Propulsion . | . . . . . . . Utility 3 | . . . 2 . 1 . Weapon 2 | . . . . 1 1 . Tool/Special 1 | . . . . . 1 . Average Slot Usage (%) 89 | . 92 87 85 94 100 96 Engine 5 | . 12 12 2 . . . Core 3 | . . . 5 7 7 7 Wheel 1 | . 6 . . . . . Flight 23 | . 19 25 24 28 28 27 Device 23 | . 26 25 20 28 28 27 Processor 4 | . . . 6 7 7 7 Protection 6 | . . . 9 9 14 13 Energy Gun 4 | . 1 . 6 7 7 5 Energy Cannon 10 | . 24 25 2 . . 1 Ballistic Gun 4 | . . . 6 7 7 5 Peak Build Rating 60 | 9 11 11 32 34 43 60 Average Rating 20 | 5 10 11 22 32 39 45 On Entrance 19 | . 9 11 11 31 34 43 Avg Prop Armor Cover (%) . | . . . . . . . Naked Turns . | . . . . . . . Heaviest Build 36 | 7 13 13 28 21 27 36 Greatest Support 35 | 25 25 13 30 30 30 35 Greatest Overweight (x) 1 | . 1 . 1 . . 1 Average Overweight (x) . | . . . . . . . Largest Inventory Capacity 3 | 1 2 2 3 3 3 3 Average Capacity 2 | . 1 2 2 3 3 3 Most Carried 3 | . 2 2 3 3 3 3 Average Carried 1 | . 1 2 2 2 2 2 Final Capacity 3 | 1 2 2 3 3 3 3 Final Carried 3 | . 2 2 3 3 3 1 Class Distribution -------------------- 50% | Scavenger-Mutant 31% | Scavenger-Sprinter 9% | Mutant 8% | Sprinter Dominant Class ---------------- Scavenger-Mutant | -10/Materials Scavenger-Mutant | -10/Mines Scavenger-Sprinter | -9/Materials Sprinter | -9/Mines Scavenger-Sprinter | -9/Exiles Scavenger-Sprinter | -8/Mines Resources | -11 -10 -10 -9 -9 -9 -8 ----------- Run | Yrd Mat Min Mat Min Exi Min Matter Collected 1132 | 222 88 . 663 106 . 53 Remotely . | . . . . . . . Salvage Created 4236 | 160 780 245 2657 250 . 144 Parts 284 | 10 80 13 145 35 . 1 Haulers Intercepted . | . . . . . . . Recyclers Shooed 2 | 1 . . . 1 . . Parts Field Recycled . | . . . . . . . Retrieved Matter . | . . . . . . . Parts Self-Destructed . | . . . . . . . Prevented . | . . . . . . . Parts Restored . | . . . . . . . Kills | -11 -10 -10 -9 -9 -9 -8 ------- Run | Yrd Mat Min Mat Min Exi Min Combat Hostiles Destroyed 122 | . 33 5 67 14 . 3 Guns 80 | . . . 63 14 . 3 Cannons 42 | . 33 5 4 . . . Classes Destroyed 10 | 2 2 1 5 . . . Worker 1 | . . . 1 . . . Tunneler 4 | 4 . . . . . . Recycler 1 | 1 . . . . . . Operator 1 | . . . 1 . . . Swarmer 29 | . 6 3 13 7 . . Grunt 75 | . 27 . 40 6 . 2 Brawler 1 | . . . 1 . . . Duelist 4 | . . . 2 1 . 1 Protector 1 | . . . 1 . . . Sentry 12 | . . 2 10 . . . Best Kill Streak 18 | 3 7 3 18 5 . 2 Combat Bots Only 18 | . 7 3 18 5 . 2 Max Kills in Single Turn 2 | 1 1 1 2 2 . 1 Gunslinging 1 | . . . 1 1 . . Exploded . | . . . . . . . Melee . | . . . . . . . Uniques/NPCs Destroyed . | . . . . . . . Combat | -11 -10 -10 -9 -9 -9 -8 -------- Run | Yrd Mat Min Mat Min Exi Min Hostile Shots Fired 394 | . 70 20 190 37 . 77 Missed 129 | . 18 8 73 16 . 14 Hits 265 | . 52 12 117 21 . 63 Melee 6 | . . . 5 1 . . Projectile 259 | . 52 12 112 20 . 63 Critical Strikes 4 | . . 1 3 . . . Damage Taken 3808 | . 548 138 1581 221 . 1320 Core 2877 | . 447 111 1167 169 . 983 Absorbed by Shields . | . . . . . . . Redirected to Core 2105 | . 307 97 863 117 . 721 Redirected to Shielding 90 | . . . 22 15 . 53 Core Remaining (%) 90 | 100 . 81 . . . . Volleys Fired 268 | 20 56 9 137 24 2 20 Largest 2 | 2 2 2 2 2 1 2 Hottest 250 | 80 136 136 136 86 23 250 Shots Fired 522 | 40 112 18 269 48 2 33 Gun 365 | 40 . . 248 48 2 27 Cannon 157 | . 112 18 21 . . 6 Launcher . | . . . . . . . Special . | . . . . . . . Kinetic 167 | . . . 127 24 2 14 Thermal 355 | 40 112 18 142 24 . 19 Explosive . | . . . . . . . Electromagnetic . | . . . . . . . Robot Hit Streak 41 | 5 32 8 41 10 . 18 Robot Miss Streak 3 | 2 3 3 2 3 . 2 Penetration Max . | . . . . . . . Secondary Targets 11 | . . . 8 3 . . Max Gunslinging Chain 1 | . . . 1 1 . . Shots Hit Robots 371 | 18 71 10 210 34 . 28 Core Hits 168 | 6 34 5 93 16 . 14 Critical Kills 1 | . . . 1 . . . Critical Parts Destroyed 1 | . . . 1 . . . Critical Strikes 8 | . . . 7 . . 1 Burn 6 | . . . 5 . . 1 Destroy 2 | . . . 2 . . . Melee Attacks . | . . . . . . . Impact . | . . . . . . . Slashing . | . . . . . . . Piercing . | . . . . . . . Sneak Attacks . | . . . . . . . Combat Hostiles . | . . . . . . . Follow-up Attacks . | . . . . . . . Damage Inflicted 6894 | 210 1568 204 3579 581 . 752 Guns 4372 | 210 . . 3199 581 . 382 Cannons 2269 | . 1568 204 380 . . 117 Explosions 253 | . . . . . . 253 Melee . | . . . . . . . Ramming . | . . . . . . . Kinetic 1841 | . . . 1435 249 . 157 Thermal 5053 | 210 1568 204 2144 332 . 595 Explosive . | . . . . . . . Electromagnetic . | . . . . . . . Impact . | . . . . . . . Slashing . | . . . . . . . Piercing . | . . . . . . . Highest Corruption . | . . . . . . . Average Corruption . | . . . . . . . Corruption Purged . | . . . . . . . Corruption Blocked . | . . . . . . . Overload Shots . | . . . . . . . Overflow Damage . | . . . . . . . Projectiles . | . . . . . . . Explosions . | . . . . . . . Melee . | . . . . . . . Knockbacks . | . . . . . . . Impact . | . . . . . . . Kinetic . | . . . . . . . Secondary . | . . . . . . . Self-Inflicted Damage 97 | . . . . . . 97 Shots 6 | . . . . . . 6 Rammed . | . . . . . . . Targets Rammed . | . . . . . . . Kicked . | . . . . . . . Crushed . | . . . . . . . Highest Temperature 498 | . 12 30 31 8 . 498 Average Temperature 21 | . 3 25 6 4 . 111 Received Heat Transfer 1065 | . 237 54 624 33 . 117 Effects 1 | . . . . . . 1 Matter Decay 1 | . . . . . . 1 Siege Activations . | . . . . . . . Martial Activations . | . . . . . . . Shielding Activations . | . . . . . . . Robots Disrupted . | . . . . . . . Combat Hostiles . | . . . . . . . Robots Corrupted . | . . . . . . . Combat Hostiles . | . . . . . . . Parts Fried . | . . . . . . . Impact Corruptions . | . . . . . . . Robots Melted . | . . . . . . . Combat Hostiles . | . . . . . . . Parts Melted 14 | 1 3 1 7 . . 2 Heat Transferred 10065 | 475 2627 370 4715 703 . 1175 Parts Sabotaged . | . . . . . . . Parts Stolen . | . . . . . . . Parts Stripped . | . . . . . . . Power Chain Reactions . | . . . . . . . Alert | -11 -10 -10 -9 -9 -9 -8 ------- Run | Yrd Mat Min Mat Min Exi Min Maximum Alert Level 4 | . 3 1 4 3 . . Low Security (%) 26 | 100 22 . 25 . . 100 Level 1 25 | . 51 100 6 . . . Level 2 14 | . 20 . 17 15 . . Level 3 22 | . 6 . 29 84 . . Level 4 10 | . . . 22 . . . Level 5 . | . . . . . . . High Security . | . . . . . . . Max Security . | . . . . . . . Sterilizations 1 | . . . 1 . . . Peak Influence 1538 | 5 791 331 1538 816 . 65 Initial 596 | . 3 306 117 596 . . Average 504 | 1 300 287 704 752 . 33 Influence Increases 3671 | 25 1131 125 1945 333 . 112 Destroy 0b10 Robot/C 2420 | . 660 100 1320 280 . 60 Destroy 0b10 Robot/NC 40 | 25 . . 15 . . . Destroy Leader 550 | . 160 10 320 50 . 10 Allied During Kill 3 | . . . . 3 . . Successful Hack 23 | . . . 23 . . . Select Force Hacks 430 | . 260 . 170 . . . Disable Machine 45 | . 15 15 15 . . . Destroy Structure 40 | . 6 . 7 . . 27 Partial Spotted 75 | . 15 . 60 . . . Lose Combat Pursuer 45 | . 15 . 15 . . 15 Influence Decreases 3649 | 20 351 609 716 1074 789 90 Entered New Map 2388 | . 2 479 184 934 789 . Time Decay 1221 | 20 349 130 522 130 . 70 Lost Part 30 | . . . 10 . . 20 Lost Ally 10 | . . . . 10 . . Squads Dispatched 32 | . 13 . 18 1 . . Investigation 28 | . 12 . 15 1 . . Extermination . | . . . . . . . Reinforcement 2 | . 1 . 1 . . . Assault 2 | . . . 2 . . . Garrison . | . . . . . . . Intercept . | . . . . . . . Searches Triggered . | . . . . . . . Construction Impeded . | . . . . . . . Haulers Reinforced . | . . . . . . . Active Scanning Responses . | . . . . . . . Cargo Convoy Interrupts . | . . . . . . . Stealth | -11 -10 -10 -9 -9 -9 -8 --------- Run | Yrd Mat Min Mat Min Exi Min Distress Signals 3 | . 1 . 2 . . . Communications Jammed . | . . . . . . . Distress Signals . | . . . . . . . Times Spotted 151 | . 39 5 86 15 1 5 Peak Tracking Total 11 | . 4 3 11 4 9 4 Tactical Retreats 4 | . 1 . 1 1 . 1 Traps | -11 -10 -10 -9 -9 -9 -8 ------- Run | Yrd Mat Min Mat Min Exi Min Traps Triggered 6 | . 3 . 3 . . . Indirectly . | . . . . . . . Trap Hack Attempts . | . . . . . . . Triggered . | . . . . . . . Disarmed . | . . . . . . . Reprogrammed . | . . . . . . . Reused . | . . . . . . . Traps Extracted . | . . . . . . . Installed . | . . . . . . . Triggered . | . . . . . . . Machines | -11 -10 -10 -9 -9 -9 -8 ---------- Run | Yrd Mat Min Mat Min Exi Min Machines Disabled 4 | . 1 1 1 . 1 . Max in Single Turn 1 | . 1 1 1 . 1 . Machines Repaired . | . . . . . . . Machines Dismantled . | . . . . . . . Machines Sabotaged 5 | . 4 . 1 . . . Overloaded Fab Kills . | . . . . . . . Hacking | -11 -10 -10 -9 -9 -9 -8 --------- Run | Yrd Mat Min Mat Min Exi Min Machines Accessed 24 | . 9 . 13 1 1 . Terminals 15 | . 7 . 7 1 . . Fabricators . | . . . . . . . Repair Stations 2 | . . . 2 . . . Recycling Units 4 | . 2 . 2 . . . Scanalyzers 2 | . . . 2 . . . Garrison Access . | . . . . . . . Total Hacks 38 | . 16 . 19 2 1 . Successful 24 | . 10 . 13 . 1 . Failed 14 | . 6 . 6 2 . . Catastrophic 4 | . 1 . 1 2 . . Database Lockouts . | . . . . . . . Manual 37 | . 16 . 18 2 1 . Terminals 27 | . 13 . 12 2 . . Fabricators . | . . . . . . . Repair Stations 2 | . . . 2 . . . Recycling Units 6 | . 3 . 3 . . . Scanalyzers 2 | . . . 2 . . . Garrison Access . | . . . . . . . Terminal Hacks 3 | . 1 . 1 . 1 . Robot Analysis 1 | . 1 . . . . . Level Access Points 1 | . . . 1 . . . Proto ID Catalog 1 | . . . . . 1 . Fabricator Hacks . | . . . . . . . Repair Station Hacks . | . . . . . . . Recycling Unit Hacks . | . . . . . . . Scanalyzer . | . . . . . . . Garrison Access Hacks . | . . . . . . . Unauthorized Hacks 21 | . 9 . 12 . . . Terminals 13 | . 7 . 6 . . . Assimilate 1 | . . . 1 . . . Sabotage 12 | . 7 . 5 . . . Fabricators . | . . . . . . . Repair Stations 2 | . . . 2 . . . Patch 2 | . . . 2 . . . Recycling Units 4 | . 2 . 2 . . . Tunnel 4 | . 2 . 2 . . . Scanalyzers 2 | . . . 2 . . . Extract 2 | . . . 2 . . . Garrison Access . | . . . . . . . Data Cores Recovered . | . . . . . . . Used . | . . . . . . . Hacking Detections 6 | . 2 . 3 1 . . Full Trace Events 2 | . . . 1 1 . . Feedback Events . | . . . . . . . Feedback Blocked . | . . . . . . . Robot Schematics Acquired . | . . . . . . . Robots Built . | . . . . . . . Authchips . | . . . . . . . Time . | . . . . . . . Total Robot Build Rating . | . . . . . . . Part Schematics Acquired 16 | . . . 16 . . . Parts Built . | . . . . . . . Authchips . | . . . . . . . Time . | . . . . . . . Total Part Build Rating . | . . . . . . . Part Studies Acquired . | . . . . . . . Parts Repaired . | . . . . . . . Time . | . . . . . . . Parts Recycled . | . . . . . . . Recycled Matter . | . . . . . . . Retrieved Matter . | . . . . . . . Retrieved Components . | . . . . . . . Parts Scanalyzed . | . . . . . . . Part Schematics Acquired . | . . . . . . . Parts Damaged . | . . . . . . . Bothacking | -11 -10 -10 -9 -9 -9 -8 ------------ Run | Yrd Mat Min Mat Min Exi Min Used RIF Installer . | . . . . . . . Robots Hacked . | . . . . . . . Non-combat . | . . . . . . . Combat . | . . . . . . . Robot Hacks Applied . | . . . . . . . Relay Couplers Released . | . . . . . . . Fabnet Peak Effective % . | . . . . . . . Robots Rewired . | . . . . . . . Allies Hacked . | . . . . . . . Hacks Repelled . | . . . . . . . Allies | -11 -10 -10 -9 -9 -9 -8 -------- Run | Yrd Mat Min Mat Min Exi Min Total Allies 2 | . . . 1 1 . . Largest Group 1 | . . . 1 1 . . Highest-Rated Group 31 | . . . 10 31 . . Highest-Rated Ally 31 | . . . 10 31 . . Total Orders 5 | . . . 5 . . . STAY 3 | . . . 3 . . . FOLLOW 2 | . . . 2 . . . Ally Attacks 2 | . . . . 2 . . Total Damage . | . . . . . . . Kills . | . . . . . . . Allies Corrupted . | . . . . . . . Allies Melted . | . . . . . . . Intel | -11 -10 -10 -9 -9 -9 -8 ------- Run | Yrd Mat Min Mat Min Exi Min Active Infowar (turns) 3080 | 35 800 270 1459 263 95 158 Terrain 3080 | 35 800 270 1459 263 95 158 Seismic 3049 | 4 800 270 1459 263 95 158 Cloaking 1 | . . . . . 1 . Robot Analysis Total 1 | . 1 . . . . . Derelict Logs Recovered 2 | . . 1 . 1 . . Drone Launches . | . . . . . . . Drone Recoveries . | . . . . . . . Exploration | -11 -10 -10 -9 -9 -9 -8 ------------- Run | Yrd Mat Min Mat Min Exi Min Turns Passed 3162 | 117 800 270 1459 263 95 158 Spaces Moved 5088 | 64 789 644 2405 618 217 351 Core 13 | 13 . . . . . . Treads . | . . . . . . . Legs . | . . . . . . . Wheels 160 | 51 109 . . . . . Hover . | . . . . . . . Flight 4915 | . 680 644 2405 618 217 351 Fastest Speed 26 | 50 37 37 26 26 26 26 Average Speed 32 | 73 43 37 30 26 26 27 Slowest Speed 125 | 80 125 37 117 26 26 109 Overloaded Moves . | . . . . . . . Propulsion Burnouts . | . . . . . . . Robots Hopped 130 | . 27 13 81 5 . 4 Potential Cave-ins . | . . . . . . . Cave-ins Triggered . | . . . . . . . Exploration Rate (%) 73 | 3 97 97 98 97 62 58 Regions Visited 6 Branch Regions 4 Pre-discovered Areas 4 | . 2 . 2 . . . Known Exits Taken . | . . . . . . . Unknown Exits Taken 6 | 1 1 1 1 1 1 . Scrap Searched 4 | . . 1 . 2 . 1 Spaces Dug . | . . . . . . . Terrain Destroyed 41 | . . . . . . 41 Melee . | . . . . . . . Projectile 5 | . . . . . . 5 AOE 36 | . . . . . . 36 Terrain Rammed . | . . . . . . . Walls Destroyed . | . . . . . . . Machines Disabled . | . . . . . . . Actions | -11 -10 -10 -9 -9 -9 -8 --------- Run | Yrd Mat Min Mat Min Exi Min Total 5959 | 90 1112 644 2809 671 254 379 Wait 537 | . 249 5 246 6 30 1 Move 4833 | 63 739 617 2248 607 216 343 Hop 119 | . 22 13 75 5 . 4 Pick Up 15 | . 5 . 7 1 2 . Fast Attach 18 | 7 . . 10 1 . . Attach 2 | . . . . . . 2 Detach 1 | . . . . . . 1 Swap 11 | . 4 . 6 . 1 . Drop 22 | . 3 . 12 1 3 3 Fire 268 | 20 56 9 137 24 2 20 Melee . | . . . . . . . Ram . | . . . . . . . Kick . | . . . . . . . Crush . | . . . . . . . Escape Stasis . | . . . . . . . Rewire . | . . . . . . . Trap . | . . . . . . . Miscellaneous 133 | . 34 . 68 26 . 5 Route ------- -11/Scrapyard -10/Materials (discovered 5 exits: *Mat x3 / [*Min x2]) -10/Mines (discovered 2 exits: *Mat x2) -9/Materials (discovered 5 exits: *Mat x3 / *Min x2) -9/Mines (discovered 3 exits: *Mat x2 / *Exi) -9/Exiles -8/Mines (discovered 1 exit: *Mat) History --------- Turn | Location | Event 3 | -11/Scrapyard | Upgraded with Propulsion slot (x1) 3 | -11/Scrapyard | Upgraded with Utility slot (x1) 3 | -11/Scrapyard | Upgraded with Weapon slot (x1) 3 | -11/Scrapyard | Discovered new exit (range 16) 118 | -11/Scrapyard | Entered Materials 310 | -10/Materials | Reached level 2 332 | -10/Materials | Discovered new exit (range 15) 343 | -10/Materials | Destroyed 7 combat bots 362 | -10/Materials | Discovered new exit (range 3) 375 | -10/Materials | Discovered new exit (range 7) 400 | -10/Materials | Discovered new exit (range 15) 477 | -10/Materials | Upgraded with Utility slot (x1) 589 | -10/Materials | Build established: Scavenger-Mutant 684 | -10/Materials | Reached level 3 748 | -10/Materials | Discovered new exit (range 9) 838 | -10/Materials | Reached level 4 918 | -10/Materials | Entered Mines 920 | -10/Mines | Reached level 5 926 | -10/Mines | Discovered new exit (range 9) 983 | -10/Mines | Learned Materials security intel 983 | -10/Mines | Discovered new exit (range 5) 1188 | -10/Mines | Entered Materials 1190 | -9/Materials | Reached level 6 1292 | -9/Materials | Upgraded with Propulsion slot (x1) 1292 | -9/Materials | Upgraded with Utility slot (x3) 1352 | -9/Materials | Discovered new exit (range 15) 1528 | -9/Materials | Discovered new exit (range 3) 1551 | -9/Materials | Reached level 7 1606 | -9/Materials | Destroyed 8 combat bots 1659 | -9/Materials | Reached level 8 1876 | -9/Materials | Destroyed 9 combat bots 1917 | -9/Materials | Reached level 9 1928 | -9/Materials | Discovered new exit (range 4) 1951 | -9/Materials | Upgraded with Propulsion slot (x1) 1951 | -9/Materials | Upgraded with Utility slot (x1) 1988 | -9/Materials | First assault squad dispatched 2016 | -9/Materials | Discovered new exit (range 16) 2196 | -9/Materials | Build established: Scavenger-Sprinter 2200 | -9/Materials | Discovered new exit (range 10) 2292 | -9/Materials | Identified exit to Materials 2504 | -9/Materials | Reached level 10 2514 | -9/Materials | Sterilization system engaged 2514 | -9/Materials | Non-combat units ordered to evacuate 2544 | -9/Materials | Core integrity fell below 50% 2614 | -9/Materials | Combat units ordered to evacuate 2616 | -9/Materials | Destroyed 18 combat bots 2647 | -9/Materials | Entered Mines 2647 | -9/Mines | Accompanied by 1 ally 2668 | -9/Mines | A weapon hastily lodged in a ceiling crevice suddenly fell to the ground 2673 | -9/Mines | Assembled infested the area 2713 | -9/Mines | Discovered exit to Materials (range 15) 2724 | -9/Mines | Discovered exit to Materials (range 3) 2802 | -9/Mines | Received a Rocket Launcher from a helpful Derelict 2830 | -9/Mines | Learned 2 Materials zone layouts 2857 | -9/Mines | Discovered new exit (range 5) 2867 | -9/Mines | Found a hidden stash of uninstalled traps 2871 | -9/Mines | Received a Mining Laser from a helpful Derelict 2910 | -9/Mines | Entered Exiles 2917 | -9/Exiles | Met 8R-AWN 2921 | -9/Exiles | Met EX-HEX 2929 | -9/Exiles | Met EX-BIN 2933 | -9/Exiles | Aligned with FarCom system 2933 | -9/Exiles | Given EX-Vault access code 2939 | -9/Exiles | Opened EX-Vault 2941 | -9/Exiles | Found Chronowheel 2943 | -9/Exiles | Found Cloak of Protection 2946 | -9/Exiles | Found Firepult 2952 | -9/Exiles | Warned to stay clear of 0b10 Research branches 2959 | -9/Exiles | Met EX-DEC 2965 | -9/Exiles | Attacked by the Exiles 2972 | -9/Exiles | Discovered new exit (range 14) 3005 | -9/Exiles | Stole three prototypes: Cloak of Protection, Chronowheel, Firepult 3005 | -9/Exiles | Entered Mines 3007 | -8/Mines | Reached level 11 3116 | -8/Mines | Discovered exit to Materials (range 15) 3140 | -8/Mines | P1-3CE came to Exiles' defense 3140 | -8/Mines | Activated Chronowheel 3160 | -8/Mines | Core integrity fell below 20% 3163 | -8/Mines | Destroyed by P1-3CE with P1-3CE's Gatling Flakker Last Messages --------------- 03130_ Knocked back. 03133_ Dropped Pulse Rifle. 03133_ Dropped Autogun. 03135_ Upgraded: Mass Support (+5) 03137_ Acquired 3 matter. 03140_ P1-3CE: "I came as fast as I could... Wait, it was you!" 03140_ Spacetime feels off. 03146_ Overheating: Matter decay (-56). 03148_ Knocked back. 03148_ Upgraded: Heat Dissipation (+48) 03153_ Upgraded: Core Integrity (+300) 03153_ Upgraded: Energy Generation (+5) 03154_ Dropped Trap Extractor. 03155_ Chronowheel is disintegrating... 03156_ Knocked back. 03156_ Propulsion Shielding destroyed. 03157_ Knocked back. 03159_ Cesium-ion Thruster destroyed. 03161_ Knocked back. 03163_ Spacetime is rapidly distorting... Map ----- +----------------------------------------------------+ | ????????????????????????# ##????? ??????#??? | | ????????????????????????# ##?????? ??????# ?? | | ????#???????????????????## ##??????? #??????# ## | | ???# ????????????????????# #????????# #?????#? | | ??? ????????????????#???# #????????# #????????# | | ??? ??????????????? #???# #????????# ########## | | ?## ??????????????? #???# ########## ## ## | | ## ??????????????? #???# < ## | | ?????????#?##?? #???################ ## | | ? ????????# " #??????????????????# ## | | ? #????????? #???????????????#??# ## | | ?# #????????? #????????????#?????## ##### | | ?# #??#?????## #??????#????????????# #???# | | ?# #????????# #????????#??????????# #???# | | ?# #????????? #??????###??#?#?????# #???# | | ?# #????###### #???????# ##????????## ###?# | | ?# ####?# ######### ##???????## ### | | ## ##?# [[ ##?????## ## | | #?# #### ! ####### | | """ #?#????## ########## ## | | """ #?????#?# ####????# ## #### | | """ ##?? #??# M ; #????# ### ##??# | | #??#? #??# ;#????# #?## """ ##??## | | # #### #??# !;###### #?### """ ##??##] | | ## #???# r #??## """ ###### | | ## #?#?# ### @ #??# | | ?## *%#######???# #?##;;#######??# | | ??### #??????#?## #??####????????# ### ##### | | ????# #?????????# #??????????????# ###?# #???# | | ????#%##?????#??# ##???????????### ##???# #???? | | ????# ###??#??#?# #??????#????### #???## #???? | | ### ##?????## #?????????### ##???# #???? | | ##?????# #???????#??# ##??# #???? | | %####### #??????????# #### #???? | | ## #??????????## #???? | | #??## ##########??????#????## #######???? | | ???### ###?????????????????????########?????????? | | ?????####?????#???????????????????##?????????????? | | ?????????#???????????????????????????????????????? | | ??????????????????????????#??????????????????????? | | | | | | | | | | | | | | | | | | | | | +----------------------------------------------------+ Best States ------------- Heat Dissipation 103 Energy Generation 24 Energy Capacity 160 Matter Stores 300 Matter Capacity 300 Sight Range 16 Terrain Scan Range 16 Terrain Scan Density 10 Armor Coverage 600 Propulsion Shielding 33 Evasion (%) 64 Salvage Targeting 1 Trap Extractor Capacity 8 Item Schematics ----------------- Lgt. Assault Rifle | -9/Materials | Extracted Seismic Detector | -9/Materials | Extracted Plasma Cutter | -9/Materials | Extracted Aluminum Leg | -9/Materials | Extracted Weapon Shielding | -9/Materials | Extracted Beam Cannon | -9/Materials | Extracted EM Shotgun | -9/Materials | Extracted Mining Laser | -9/Materials | Extracted Lgt. Treads | -9/Materials | Extracted Hrd. Light Armor Plating | -9/Materials | Extracted Med. Laser | -9/Materials | Extracted Weight Redist. System | -9/Materials | Extracted Med. Armor Plating | -9/Materials | Extracted Assault Rifle | -9/Materials | Extracted Wheel | -9/Materials | Extracted Cooling System | -9/Materials | Extracted Robot Schematics ------------------ None Fabricated ------------ Nothing Repaired ---------- Nothing Studied --------- None Alien Tech Used ----------------- None Achievements -------------- None Challenges ------------ None RPGLIKE | -11 -10 -10 -9 -9 -9 -8 --------- Run | Yrd Mat Min Mat Min Exi Min Levels Raised 10 | . 3 1 5 . . 1 XP Earned 18670 | 3000 5543 931 7614 724 117 741 XP Spent 17960 | 3000 1800 . 9450 . . 3710 Upgrades 39 | 12 3 . 8 . . 16 Propulsion Slot 3 | 1 . . 2 . . . Utility Slot 6 | 1 1 . 4 . . . Weapon Slot 1 | 1 . . . . . . Core Integrity 6 | . . . . . . 6 Heat Dissipation 13 | 5 . . . . . 8 Energy Generation 2 | 1 . . . . . 1 Mass Support 3 | 1 . . 1 . . 1 Inventory Capacity 3 | 1 1 . 1 . . . Ranged Accuracy 2 | 1 1 . . . . . Protomatter Created 1409 | . 561 . 600 206 . 42 Integrity Restored 2523 | . 554 . 1342 520 . 107 Core 1965 | . 447 . 1103 344 . 71 Parts 558 | . 107 . 239 176 . 36 Protomatter Decayed 327 | . 159 . 89 74 . 5 Game ------ Seed WaveFusionLoader Manual? 0 Play Time 00:34:01 Cumulative 687.4 hours Start 2026.07.23 @ 07:21:00 End 2026.07.23 @ 08:03:51 Sessions 1 Manual Loads 0 Difficulty Rogue Special Mode Winter2019/RPGLIKE Game No. 342 Rogue 188 Adventurer 154 Explorer 0 Win Type - Total 24 Types 4/6/5/3/2/1/0/1/1/1 Lore% 95 Gallery% 88 Achievement% 68 Wizard Run 0 Options --------- Layout 0 ASCII 0 Keyboard 0 Movement Numpad Keybinds 0 Fullscreen 2 Font 18/SmallcapsGlow Map View 76x50 Zoom Use 0% Tactical HUD 1 Map Filters NONE Filters NONE Steam 1 RUN: 7784bdad-0d96-4cc7-9572-80eceda9b475